[Event "Titled Tuesday Blitz May 30 Late 2023"]
[White "Andreassen, Lars"]
[Black "Petukhov, Dmitry"]
[WhiteFideId "1504878"]
[BlackFideId "4142748"]
[WhiteElo "2119"]
[BlackElo "2311"]
[Result "0-1"]
[Round "03"]
[TimeControl "180+2"]
[Date "2023.05.31"]
[WhiteClock "0:00:11"]
[BlackClock "0:01:04"]

1. d4 {[%clk 0:02:59]}  Nf6 {[%clk 0:02:06]} 2. Nf3 {[%clk 0:02:53]}  g6 {[%clk 0:02:04]} 3. c4 {[%clk 0:02:52]}  Bg7 {[%clk 0:02:03]} 4. Nc3 {[%clk 0:02:52]}  d5 {[%clk 0:02:04]} 5. cxd5 {[%clk 0:02:52]}  Nxd5 {[%clk 0:02:04]} 6. Na4 {[%clk 0:02:52]}  O-O {[%clk 0:02:03]} 7. e4 {[%clk 0:02:51]}  Nb6 {[%clk 0:02:04]} 8. Nc5 {[%clk 0:02:51]}  N6d7 {[%clk 0:02:02]} 9. Nd3 {[%clk 0:02:49]}  c5 {[%clk 0:02:01]} 10. Be3 {[%clk 0:02:45]}  Nc6 {[%clk 0:01:59]} 11. d5 {[%clk 0:02:44]}  Nd4 {[%clk 0:01:59]} 12. Be2 {[%clk 0:02:30]}  Nxe2 {[%clk 0:01:51]} 13. Qxe2 {[%clk 0:02:29]}  c4 {[%clk 0:01:49]} 14. Nf4 {[%clk 0:02:19]}  c3 {[%clk 0:01:46]} 15. Bd4 {[%clk 0:02:09]}  cxb2 {[%clk 0:01:42]} 16. Bxb2 {[%clk 0:01:58]}  Qa5+ {[%clk 0:01:41]} 17. Kf1 {[%clk 0:01:58]}  b6 {[%clk 0:01:23]} 18. Bxg7 {[%clk 0:01:54]}  Ba6 {[%clk 0:01:24]} 19. Nd3 {[%clk 0:01:54]}  Nc5 {[%clk 0:01:22]} 20. Nfe1 {[%clk 0:01:32]}  Kxg7 {[%clk 0:01:22]} 21. Kg1 {[%clk 0:01:20]}  Qc3 {[%clk 0:01:17]} 22. Rd1 {[%clk 0:01:15]}  e6 {[%clk 0:01:07]} 23. Qb2 {[%clk 0:01:02]}  Qxb2 {[%clk 0:01:07]} 24. Nxb2 {[%clk 0:01:02]}  Nxe4 {[%clk 0:01:08]} 25. dxe6 {[%clk 0:00:49]}  fxe6 {[%clk 0:01:09]} 26. f3 {[%clk 0:00:47]}  Nc3 {[%clk 0:01:07]} 27. Rd7+ {[%clk 0:00:45]}  Rf7 {[%clk 0:01:06]} 28. Rxf7+ {[%clk 0:00:45]}  Kxf7 {[%clk 0:01:07]} 29. Kf2 {[%clk 0:00:44]}  Rd8 {[%clk 0:01:07]} 30. Ke3 {[%clk 0:00:36]}  Nd1+ {[%clk 0:01:07]} 31. Nxd1 {[%clk 0:00:31]}  Rxd1 {[%clk 0:01:07]} 32. h4 {[%clk 0:00:22]}  h5 {[%clk 0:01:06]} 33. g4 {[%clk 0:00:21]}  Ra1 {[%clk 0:01:06]} 34. gxh5 {[%clk 0:00:19]}  gxh5 {[%clk 0:01:07]} 35. Rg1 {[%clk 0:00:11]}  Rxa2 {[%clk 0:01:05]} 36. Rg5 {[%clk 0:00:11]}  Re2+ {[%clk 0:01:04]} 0-1


[Site "https://www.chess.com"]

[Event "Titled Tuesday Blitz May 30 Late 2023"]
[White "Magallanes, Rey Jomar"]
[Black "Koc, Przemyslaw"]
[WhiteFideId "5205948"]
[BlackFideId "1109081"]
[WhiteElo "2248"]
[BlackElo "2161"]
[Result "1/2-1/2"]
[Round "03"]
[TimeControl "180+2"]
[Date "2023.05.31"]
[WhiteClock "0:00:22"]
[BlackClock "0:00:20"]

1. e4 {[%clk 0:02:51]}  d6 {[%clk 0:03:00]} 2. d4 {[%clk 0:02:49]}  Nf6 {[%clk 0:03:01]} 3. Nc3 {[%clk 0:02:49]}  e5 {[%clk 0:03:01]} 4. dxe5 {[%clk 0:02:49]}  dxe5 {[%clk 0:03:02]} 5. Qxd8+ {[%clk 0:02:49]}  Kxd8 {[%clk 0:03:03]} 6. Bg5 {[%clk 0:02:49]}  Be6 {[%clk 0:03:03]} 7. O-O-O+ {[%clk 0:02:49]}  Bd6 {[%clk 0:03:02]} 8. Nf3 {[%clk 0:02:48]}  Nd7 {[%clk 0:02:57]} 9. Bb5 {[%clk 0:02:44]}  Kc8 {[%clk 0:02:54]} 10. Bxd7+ {[%clk 0:02:39]}  Nxd7 {[%clk 0:02:53]} 11. Nd5 {[%clk 0:02:37]}  f6 {[%clk 0:02:52]} 12. Be3 {[%clk 0:02:35]}  Rd8 {[%clk 0:02:43]} 13. h4 {[%clk 0:02:33]}  Nb6 {[%clk 0:02:39]} 14. h5 {[%clk 0:02:18]}  Nxd5 {[%clk 0:02:38]} 15. exd5 {[%clk 0:02:19]}  Bg4 {[%clk 0:02:38]} 16. h6 {[%clk 0:02:15]}  g5 {[%clk 0:02:29]} 17. Rd2 {[%clk 0:02:11]}  Bxf3 {[%clk 0:02:18]} 18. gxf3 {[%clk 0:02:12]}  Be7 {[%clk 0:02:18]} 19. c4 {[%clk 0:02:11]}  b6 {[%clk 0:02:18]} 20. Re2 {[%clk 0:02:07]}  Kd7 {[%clk 0:02:13]} 21. Rhe1 {[%clk 0:02:05]}  Bb4 {[%clk 0:02:11]} 22. Rd1 {[%clk 0:02:03]}  Bc5 {[%clk 0:02:05]} 23. Bd2 {[%clk 0:02:02]}  Rg8 {[%clk 0:02:04]} 24. b4 {[%clk 0:02:01]}  Bd6 {[%clk 0:02:04]} 25. Be3 {[%clk 0:02:01]}  a5 {[%clk 0:01:58]} 26. c5 {[%clk 0:02:00]}  bxc5 {[%clk 0:01:58]} 27. bxc5 {[%clk 0:02:01]}  Be7 {[%clk 0:01:58]} 28. d6 {[%clk 0:01:59]}  cxd6 {[%clk 0:01:58]} 29. cxd6 {[%clk 0:02:00]}  Bd8 {[%clk 0:01:57]} 30. Rc2 {[%clk 0:01:57]}  Ra6 {[%clk 0:01:46]} 31. Bc5 {[%clk 0:01:55]}  Rc6 {[%clk 0:01:43]} 32. Rd3 {[%clk 0:01:54]}  g4 {[%clk 0:01:37]} 33. Rb3 {[%clk 0:01:53]}  gxf3 {[%clk 0:01:33]} 34. Rb7+ {[%clk 0:01:52]}  Ke6 {[%clk 0:01:33]} 35. Rxh7 {[%clk 0:01:48]}  Rg1+ {[%clk 0:01:31]} 36. Kb2 {[%clk 0:01:46]}  Rh1 {[%clk 0:01:26]} 37. Rh8 {[%clk 0:01:45]}  Bb6 {[%clk 0:01:26]} 38. Re8+ {[%clk 0:01:44]}  Kf5 {[%clk 0:01:16]} 39. d7 {[%clk 0:01:42]}  Rxh6 {[%clk 0:00:38]} 40. Bxb6 {[%clk 0:01:38]}  Rxb6+ {[%clk 0:00:37]} 41. Ka3 {[%clk 0:01:37]}  Rd6 {[%clk 0:00:20]} 42. d8=Q {[%clk 0:01:37]}  Rxd8 {[%clk 0:00:20]} 43. Rxd8 {[%clk 0:01:38]}  Rh2 {[%clk 0:00:19]} 44. Ka4 {[%clk 0:01:33]}  e4 {[%clk 0:00:18]} 45. Rd5+ {[%clk 0:01:32]}  Kf4 {[%clk 0:00:18]} 46. Rd4 {[%clk 0:01:29]}  f5 {[%clk 0:00:18]} 47. Kxa5 {[%clk 0:01:28]}  Rh1 {[%clk 0:00:17]} 48. a4 {[%clk 0:01:25]}  Re1 {[%clk 0:00:17]} 49. Kb5 {[%clk 0:01:16]}  Re2 {[%clk 0:00:17]} 50. Rdd2 {[%clk 0:01:15]}  Rxd2 {[%clk 0:00:17]} 51. Rxd2 {[%clk 0:01:15]}  e3 {[%clk 0:00:18]} 52. fxe3+ {[%clk 0:01:15]}  Kxe3 {[%clk 0:00:18]} 53. Rd1 {[%clk 0:01:12]}  Ke2 {[%clk 0:00:18]} 54. Rb1 {[%clk 0:01:11]}  f2 {[%clk 0:00:19]} 55. a5 {[%clk 0:01:10]}  f1=Q {[%clk 0:00:18]} 56. Rxf1 {[%clk 0:01:10]}  Kxf1 {[%clk 0:00:19]} 57. a6 {[%clk 0:01:10]}  f4 {[%clk 0:00:20]} 58. a7 {[%clk 0:01:07]}  f3 {[%clk 0:00:21]} 59. a8=Q {[%clk 0:01:07]}  f2 {[%clk 0:00:21]} 60. Qh1+ {[%clk 0:01:06]}  Ke2 {[%clk 0:00:22]} 61. Qg2 {[%clk 0:01:06]}  Ke1 {[%clk 0:00:22]} 62. Qe4+ {[%clk 0:01:07]}  Kf1 {[%clk 0:00:22]} 63. Kc4 {[%clk 0:01:06]}  Kg1 {[%clk 0:00:22]} 64. Qg4+ {[%clk 0:01:06]}  Kh2 {[%clk 0:00:22]} 65. Qh4+ {[%clk 0:01:05]}  Kg2 {[%clk 0:00:22]} 66. Qg4+ {[%clk 0:01:04]}  Kh1 {[%clk 0:00:22]} 67. Qe2 {[%clk 0:01:01]}  Kg1 {[%clk 0:00:22]} 68. Qg4+ {[%clk 0:00:59]}  Kh1 {[%clk 0:00:22]} 69. Qh3+ {[%clk 0:00:58]}  Kg1 {[%clk 0:00:23]} 70. Qg3+ {[%clk 0:00:58]}  Kh1 {[%clk 0:00:23]} 71. Qf3+ {[%clk 0:00:40]}  Kg1 {[%clk 0:00:23]} 72. Qe3 {[%clk 0:00:33]}  Kg2 {[%clk 0:00:23]} 73. Qe4+ {[%clk 0:00:30]}  Kg1 {[%clk 0:00:23]} 74. Qd4 {[%clk 0:00:29]}  Kg2 {[%clk 0:00:23]} 75. Qd2 {[%clk 0:00:28]}  Kg1 {[%clk 0:00:24]} 76. Kd4 {[%clk 0:00:20]}  f1=Q {[%clk 0:00:23]} 77. Ke3 {[%clk 0:00:20]}  Qh3+ {[%clk 0:00:20]} 78. Kd4 {[%clk 0:00:20]}  Qg4+ {[%clk 0:00:20]} 79. Kc3 {[%clk 0:00:21]}  Qg3+ {[%clk 0:00:20]} 80. Qd3 {[%clk 0:00:22]}  Qxd3+ {[%clk 0:00:20]} 81. Kxd3 {[%clk 0:00:22]} 1/2-1/2


[Site "https://www.chess.com"]

[Event "Titled Tuesday Blitz May 30 Late 2023"]
[White "Ladan, Nicholas"]
[Black "Djordjevic, Dejan N"]
[WhiteFideId "30918855"]
[BlackFideId "913316"]
[WhiteElo "2167"]
[BlackElo "2261"]
[Result "1-0"]
[Round "03"]
[TimeControl "180+2"]
[Date "2023.05.31"]
[WhiteClock "0:00:11"]
[BlackClock "0:00:05"]

1. d4 {[%clk 0:03:00]}  Nf6 {[%clk 0:02:58]} 2. c4 {[%clk 0:03:01]}  g6 {[%clk 0:02:57]} 3. Nf3 {[%clk 0:03:01]}  Bg7 {[%clk 0:02:54]} 4. g3 {[%clk 0:03:00]}  d6 {[%clk 0:02:55]} 5. Bg2 {[%clk 0:03:00]}  O-O {[%clk 0:02:55]} 6. O-O {[%clk 0:03:01]}  Nc6 {[%clk 0:02:55]} 7. h3 {[%clk 0:03:00]}  a6 {[%clk 0:02:55]} 8. Nc3 {[%clk 0:02:59]}  Bd7 {[%clk 0:02:55]} 9. d5 {[%clk 0:02:57]}  Na5 {[%clk 0:02:55]} 10. Qd3 {[%clk 0:02:56]}  c5 {[%clk 0:02:54]} 11. e4 {[%clk 0:02:55]}  Rb8 {[%clk 0:02:50]} 12. Rb1 {[%clk 0:02:48]}  b5 {[%clk 0:02:50]} 13. b3 {[%clk 0:02:48]}  Qc7 {[%clk 0:02:45]} 14. Bd2 {[%clk 0:02:39]}  Rfc8 {[%clk 0:02:40]} 15. Rfe1 {[%clk 0:02:38]}  Ne8 {[%clk 0:02:33]} 16. Bg5 {[%clk 0:02:29]}  f6 {[%clk 0:02:22]} 17. Bd2 {[%clk 0:02:26]}  Rb7 {[%clk 0:02:21]} 18. Rbc1 {[%clk 0:02:12]}  bxc4 {[%clk 0:02:16]} 19. bxc4 {[%clk 0:02:12]}  Rcb8 {[%clk 0:02:14]} 20. h4 {[%clk 0:02:09]}  Rb2 {[%clk 0:02:12]} 21. h5 {[%clk 0:02:07]}  g5 {[%clk 0:01:50]} 22. e5 {[%clk 0:01:55]}  dxe5 {[%clk 0:01:43]} 23. Bxg5 {[%clk 0:01:54]}  fxg5 {[%clk 0:01:36]} 24. Nxg5 {[%clk 0:01:55]}  Nf6 {[%clk 0:01:34]} 25. Nce4 {[%clk 0:01:54]}  Nxh5 {[%clk 0:01:13]} 26. d6 {[%clk 0:01:54]}  exd6 {[%clk 0:01:12]} 27. Nxd6 {[%clk 0:01:53]}  Nf6 {[%clk 0:01:07]} 28. Bd5+ {[%clk 0:01:28]}  Kf8 {[%clk 0:00:58]} 29. Nde4 {[%clk 0:01:21]}  Nxd5 {[%clk 0:00:52]} 30. Qxd5 {[%clk 0:01:14]}  Bf5 {[%clk 0:00:46]} 31. Nxc5 {[%clk 0:01:08]}  Re8 {[%clk 0:00:31]} 32. Nce6+ {[%clk 0:00:48]}  Bxe6 {[%clk 0:00:27]} 33. Nxe6+ {[%clk 0:00:49]}  Rxe6 {[%clk 0:00:27]} 34. Qxe6 {[%clk 0:00:49]}  Nc6 {[%clk 0:00:20]} 35. Qf5+ {[%clk 0:00:22]}  Kg8 {[%clk 0:00:18]} 36. Qe6+ {[%clk 0:00:22]}  Kf8 {[%clk 0:00:15]} 37. Rc3 {[%clk 0:00:14]}  e4 {[%clk 0:00:11]} 38. Rxe4 {[%clk 0:00:13]}  Bxc3 {[%clk 0:00:09]} 39. Rf4+ {[%clk 0:00:13]}  Kg7 {[%clk 0:00:09]} 40. Rg4+ {[%clk 0:00:11]}  Kf8 {[%clk 0:00:05]} 41. Rg8# {[%clk 0:00:11]} 1-0


[Site "https://www.chess.com"]

[Event "Titled Tuesday Blitz May 30 Late 2023"]
[White "zano2023"]
[Black "Bringas Gomez, Artai"]
[BlackFideId "24534064"]
[WhiteElo "2187"]
[BlackElo "2179"]
[Result "0-1"]
[Round "03"]
[TimeControl "180+2"]
[Date "2023.05.31"]
[WhiteClock "0:01:18"]
[BlackClock "0:01:29"]

1. d4 {[%clk 0:03:00]}  d5 {[%clk 0:02:59]} 2. Nf3 {[%clk 0:03:00]}  c6 {[%clk 0:02:58]} 3. Nbd2 {[%clk 0:02:59]}  Bf5 {[%clk 0:02:57]} 4. e3 {[%clk 0:03:00]}  e6 {[%clk 0:02:57]} 5. c4 {[%clk 0:03:00]}  Nf6 {[%clk 0:02:57]} 6. Qb3 {[%clk 0:03:01]}  Qb6 {[%clk 0:02:57]} 7. c5 {[%clk 0:03:02]}  Qc7 {[%clk 0:02:56]} 8. Bd3 {[%clk 0:03:01]}  Bxd3 {[%clk 0:02:56]} 9. Qxd3 {[%clk 0:03:02]}  Nbd7 {[%clk 0:02:56]} 10. O-O {[%clk 0:03:02]}  Be7 {[%clk 0:02:53]} 11. b4 {[%clk 0:03:01]}  O-O {[%clk 0:02:51]} 12. Bb2 {[%clk 0:03:02]}  Rfe8 {[%clk 0:02:22]} 13. Rfe1 {[%clk 0:03:01]}  Bf8 {[%clk 0:02:22]} 14. h3 {[%clk 0:02:59]}  h6 {[%clk 0:02:21]} 15. a3 {[%clk 0:02:44]}  a6 {[%clk 0:02:20]} 16. Bc3 {[%clk 0:02:44]}  Rad8 {[%clk 0:02:15]} 17. Ne5 {[%clk 0:02:38]}  Nxe5 {[%clk 0:02:15]} 18. dxe5 {[%clk 0:02:39]}  Nd7 {[%clk 0:02:16]} 19. f4 {[%clk 0:02:37]}  g6 {[%clk 0:02:15]} 20. Bd4 {[%clk 0:02:35]}  Bg7 {[%clk 0:02:15]} 21. Nf3 {[%clk 0:02:35]}  Ra8 {[%clk 0:02:10]} 22. a4 {[%clk 0:02:35]}  a5 {[%clk 0:02:09]} 23. b5 {[%clk 0:02:35]}  cxb5 {[%clk 0:02:07]} 24. Qxb5 {[%clk 0:02:35]}  Nb8 {[%clk 0:02:06]} 25. Rab1 {[%clk 0:02:34]}  Re7 {[%clk 0:02:05]} 26. Qb6 {[%clk 0:02:15]}  Bf8 {[%clk 0:02:04]} 27. Qxc7 {[%clk 0:02:14]}  Rxc7 {[%clk 0:02:04]} 28. Rb5 {[%clk 0:02:12]}  Nd7 {[%clk 0:01:58]} 29. Reb1 {[%clk 0:02:11]}  Nxc5 {[%clk 0:01:47]} 30. Bxc5 {[%clk 0:01:46]}  Bxc5 {[%clk 0:01:46]} 31. Kf2 {[%clk 0:01:46]}  b6 {[%clk 0:01:45]} 32. g4 {[%clk 0:01:43]}  Rac8 {[%clk 0:01:43]} 33. R5b2 {[%clk 0:01:38]}  Bb4 {[%clk 0:01:42]} 34. Nd4 {[%clk 0:01:36]}  Bc3 {[%clk 0:01:30]} 35. Rxb6 {[%clk 0:01:33]}  Bxd4 {[%clk 0:01:31]} 36. exd4 {[%clk 0:01:33]}  Rc2+ {[%clk 0:01:31]} 37. Kg3 {[%clk 0:01:32]}  R8c3+ {[%clk 0:01:28]} 38. Kh4 {[%clk 0:01:27]}  Rh2 {[%clk 0:01:29]} 39. g5 {[%clk 0:01:24]}  h5 {[%clk 0:01:29]} 40. Rb8+ {[%clk 0:01:18]}  Kg7 {[%clk 0:01:29]} 0-1


[Site "https://www.chess.com"]

[Event "Titled Tuesday Blitz May 30 Late 2023"]
[White "Arnold, Ken"]
[Black "Stead, Kerry"]
[WhiteFideId "2056836"]
[BlackFideId "3202577"]
[WhiteElo "2391"]
[BlackElo "1997"]
[Result "1-0"]
[Round "03"]
[TimeControl "180+2"]
[Date "2023.05.31"]
[WhiteClock "0:00:08"]
[BlackClock "0:00:01"]

1. d4 {[%clk 0:03:00]}  c5 {[%clk 0:02:58]} 2. d5 {[%clk 0:03:00]}  f5 {[%clk 0:02:58]} 3. Nc3 {[%clk 0:03:00]}  g6 {[%clk 0:02:57]} 4. e4 {[%clk 0:03:00]}  fxe4 {[%clk 0:02:57]} 5. Nxe4 {[%clk 0:03:00]}  d6 {[%clk 0:02:54]} 6. Ng5 {[%clk 0:02:53]}  a6 {[%clk 0:02:52]} 7. Bd2 {[%clk 0:02:48]}  Nf6 {[%clk 0:02:52]} 8. N1f3 {[%clk 0:02:48]}  Bg7 {[%clk 0:02:51]} 9. Bc3 {[%clk 0:02:47]}  b5 {[%clk 0:02:47]} 10. b3 {[%clk 0:02:45]}  Bf5 {[%clk 0:02:34]} 11. Bd3 {[%clk 0:02:42]}  Bd7 {[%clk 0:02:23]} 12. h4 {[%clk 0:02:40]}  e5 {[%clk 0:02:12]} 13. dxe6 {[%clk 0:02:37]}  Bc6 {[%clk 0:02:11]} 14. Nf7 {[%clk 0:02:33]}  Qe7 {[%clk 0:02:10]} 15. Nxh8 {[%clk 0:02:31]}  Qxe6+ {[%clk 0:02:08]} 16. Qe2 {[%clk 0:02:29]}  Qxe2+ {[%clk 0:02:05]} 17. Bxe2 {[%clk 0:02:21]}  Bxh8 {[%clk 0:02:03]} 18. O-O-O {[%clk 0:02:17]}  d5 {[%clk 0:01:54]} 19. Rhe1 {[%clk 0:02:13]}  Kf8 {[%clk 0:01:49]} 20. Ng5 {[%clk 0:02:03]}  d4 {[%clk 0:01:43]} 21. Ba5 {[%clk 0:01:25]}  Nbd7 {[%clk 0:01:37]} 22. Bf3 {[%clk 0:01:21]}  Bxf3 {[%clk 0:01:35]} 23. gxf3 {[%clk 0:01:14]}  Nd5 {[%clk 0:01:29]} 24. c4 {[%clk 0:01:08]}  bxc4 {[%clk 0:01:22]} 25. bxc4 {[%clk 0:01:08]}  N5b6 {[%clk 0:01:22]} 26. Ne6+ {[%clk 0:01:03]}  Kf7 {[%clk 0:01:20]} 27. Nxc5 {[%clk 0:00:51]}  Nxc5 {[%clk 0:01:14]} 28. Bxb6 {[%clk 0:00:50]}  Rc8 {[%clk 0:01:12]} 29. Bxc5 {[%clk 0:00:38]}  Rxc5 {[%clk 0:01:11]} 30. Kd2 {[%clk 0:00:36]}  Rxc4 {[%clk 0:01:11]} 31. Rc1 {[%clk 0:00:36]}  Ra4 {[%clk 0:01:08]} 32. Rc2 {[%clk 0:00:35]}  Bf6 {[%clk 0:01:06]} 33. Re4 {[%clk 0:00:34]}  g5 {[%clk 0:01:02]} 34. hxg5 {[%clk 0:00:33]}  Bxg5+ {[%clk 0:01:01]} 35. Kd3 {[%clk 0:00:33]}  Bf6 {[%clk 0:00:58]} 36. Rc7+ {[%clk 0:00:30]}  Kg6 {[%clk 0:00:58]} 37. Re6 {[%clk 0:00:28]}  Kf5 {[%clk 0:00:55]} 38. Rcc6 {[%clk 0:00:28]}  Ra3+ {[%clk 0:00:48]} 39. Ke2 {[%clk 0:00:22]}  Rxa2+ {[%clk 0:00:46]} 40. Kf1 {[%clk 0:00:22]}  Bh4 {[%clk 0:00:40]} 41. Re2 {[%clk 0:00:19]}  Ra1+ {[%clk 0:00:35]} 42. Kg2 {[%clk 0:00:18]}  Bg5 {[%clk 0:00:33]} 43. Rc5+ {[%clk 0:00:17]}  Kg6 {[%clk 0:00:33]} 44. Rd5 {[%clk 0:00:17]}  Bf6 {[%clk 0:00:29]} 45. Re6 {[%clk 0:00:13]}  Kf7 {[%clk 0:00:29]} 46. Rdd6 {[%clk 0:00:12]}  Bg5 {[%clk 0:00:26]} 47. Rxa6 {[%clk 0:00:12]}  Rd1 {[%clk 0:00:20]} 48. Re4 {[%clk 0:00:12]}  d3 {[%clk 0:00:20]} 49. Rd6 {[%clk 0:00:10]}  d2 {[%clk 0:00:18]} 50. Red4 {[%clk 0:00:08]}  h5 {[%clk 0:00:16]} 51. f4 {[%clk 0:00:08]}  Be7 {[%clk 0:00:01]} 52. Rxd2 {[%clk 0:00:08]} 1-0


[Site "https://www.chess.com"]

[Event "Titled Tuesday Blitz May 30 Late 2023"]
[White "Prieto Aranguren, Alain"]
[Black "Arencibia Monduy, Antonio"]
[WhiteFideId "2268906"]
[BlackFideId "3507939"]
[WhiteElo "2209"]
[BlackElo "2451"]
[Result "0-1"]
[Round "03"]
[TimeControl "180+2"]
[Date "2023.05.31"]
[WhiteClock "0:00:05"]
[BlackClock "0:01:18"]

1. d4 {[%clk 0:03:00]}  Nf6 {[%clk 0:03:00]} 2. c4 {[%clk 0:02:56]}  e6 {[%clk 0:03:00]} 3. Nc3 {[%clk 0:02:56]}  d5 {[%clk 0:03:00]} 4. cxd5 {[%clk 0:02:56]}  exd5 {[%clk 0:03:00]} 5. Bg5 {[%clk 0:02:56]}  Be7 {[%clk 0:03:00]} 6. e3 {[%clk 0:02:55]}  c6 {[%clk 0:03:00]} 7. Bd3 {[%clk 0:02:55]}  h6 {[%clk 0:03:00]} 8. Bf4 {[%clk 0:02:54]}  Ne4 {[%clk 0:03:00]} 9. Nxe4 {[%clk 0:02:47]}  dxe4 {[%clk 0:03:00]} 10. Bxe4 {[%clk 0:02:47]}  Bb4+ {[%clk 0:03:00]} 11. Kf1 {[%clk 0:02:44]}  O-O {[%clk 0:02:59]} 12. Nf3 {[%clk 0:02:41]}  Re8 {[%clk 0:02:59]} 13. Bd3 {[%clk 0:02:41]}  Bd6 {[%clk 0:02:41]} 14. Bxd6 {[%clk 0:02:39]}  Qxd6 {[%clk 0:02:41]} 15. Qb3 {[%clk 0:02:32]}  b6 {[%clk 0:02:29]} 16. Ne5 {[%clk 0:02:23]}  Be6 {[%clk 0:02:25]} 17. Qa3 {[%clk 0:02:15]}  Qc7 {[%clk 0:02:19]} 18. Rc1 {[%clk 0:02:08]}  Bd5 {[%clk 0:01:56]} 19. e4 {[%clk 0:01:44]}  Be6 {[%clk 0:01:54]} 20. Nxc6 {[%clk 0:01:14]}  Nxc6 {[%clk 0:01:47]} 21. d5 {[%clk 0:01:14]}  Qf4 {[%clk 0:01:47]} 22. Rxc6 {[%clk 0:01:08]}  Bd7 {[%clk 0:01:37]} 23. Rc2 {[%clk 0:00:52]}  Rac8 {[%clk 0:01:34]} 24. Qb3 {[%clk 0:00:33]}  Rxc2 {[%clk 0:01:33]} 25. Qxc2 {[%clk 0:00:33]}  Rc8 {[%clk 0:01:32]} 26. Qd1 {[%clk 0:00:14]}  Rc1 {[%clk 0:01:32]} 27. Ke2 {[%clk 0:00:14]}  Rxd1 {[%clk 0:01:30]} 28. Rxd1 {[%clk 0:00:14]}  Qg4+ {[%clk 0:01:27]} 29. Ke3 {[%clk 0:00:12]}  Qxg2 {[%clk 0:01:26]} 30. f3 {[%clk 0:00:10]}  g5 {[%clk 0:01:18]} 31. Rd2 {[%clk 0:00:09]}  Qg1+ {[%clk 0:01:17]} 32. Ke2 {[%clk 0:00:06]}  Qxh2+ {[%clk 0:01:18]} 33. Ke3 {[%clk 0:00:06]}  Qf4+ {[%clk 0:01:17]} 34. Ke2 {[%clk 0:00:05]}  g4 {[%clk 0:01:18]} 0-1


[Site "https://www.chess.com"]

[Event "Titled Tuesday Blitz May 30 Late 2023"]
[White "Rama, Tejas"]
[Black "ritanovikova"]
[WhiteFideId "30907381"]
[WhiteElo "2089"]
[BlackElo "2174"]
[Result "1-0"]
[Round "03"]
[TimeControl "180+2"]
[Date "2023.05.31"]
[WhiteClock "0:02:13"]
[BlackClock "0:02:32"]

1. d4 {[%clk 0:02:44]}  e5 {[%clk 0:02:59]} 2. dxe5 {[%clk 0:02:43]}  Nc6 {[%clk 0:02:59]} 3. Nf3 {[%clk 0:02:42]}  Qe7 {[%clk 0:02:59]} 4. Nc3 {[%clk 0:02:39]}  Nxe5 {[%clk 0:03:00]} 5. Bf4 {[%clk 0:02:39]}  Nxf3+ {[%clk 0:02:59]} 6. gxf3 {[%clk 0:02:40]}  c6 {[%clk 0:02:58]} 7. Qd2 {[%clk 0:02:39]}  d5 {[%clk 0:02:57]} 8. O-O-O {[%clk 0:02:39]}  Bf5 {[%clk 0:02:57]} 9. e4 {[%clk 0:02:38]}  dxe4 {[%clk 0:02:52]} 10. fxe4 {[%clk 0:02:39]}  Bg4 {[%clk 0:02:50]} 11. Nb5 {[%clk 0:02:18]}  Rc8 {[%clk 0:02:32]} 12. Nd6+ {[%clk 0:02:13]} 1-0


[Site "https://www.chess.com"]

[Event "Titled Tuesday Blitz May 30 Late 2023"]
[White "Prydun, Andriy"]
[Black "Torres Dominguez, David"]
[WhiteFideId "14145898"]
[BlackFideId "2220857"]
[WhiteElo "2164"]
[BlackElo "1999"]
[Result "0-1"]
[Round "03"]
[TimeControl "180+2"]
[Date "2023.05.31"]
[WhiteClock "0:00:16"]
[BlackClock "0:00:57"]

1. e4 {[%clk 0:03:00]}  Nc6 {[%clk 0:02:59]} 2. d4 {[%clk 0:03:00]}  e5 {[%clk 0:02:59]} 3. d5 {[%clk 0:02:59]}  Nce7 {[%clk 0:02:59]} 4. Bd3 {[%clk 0:02:27]}  Ng6 {[%clk 0:02:56]} 5. g3 {[%clk 0:02:24]}  Bc5 {[%clk 0:02:53]} 6. h4 {[%clk 0:02:22]}  h5 {[%clk 0:02:53]} 7. Nd2 {[%clk 0:02:18]}  d6 {[%clk 0:02:52]} 8. f3 {[%clk 0:02:12]}  N8e7 {[%clk 0:02:51]} 9. Nf1 {[%clk 0:02:09]}  c6 {[%clk 0:02:46]} 10. c4 {[%clk 0:02:08]}  cxd5 {[%clk 0:02:46]} 11. cxd5 {[%clk 0:02:07]}  Qb6 {[%clk 0:02:44]} 12. Rb1 {[%clk 0:02:01]}  Bxg1 {[%clk 0:02:42]} 13. Qe2 {[%clk 0:01:59]}  Bd4 {[%clk 0:02:40]} 14. b4 {[%clk 0:01:53]}  f5 {[%clk 0:02:38]} 15. a4 {[%clk 0:01:50]}  a5 {[%clk 0:02:38]} 16. Bd2 {[%clk 0:01:48]}  fxe4 {[%clk 0:02:28]} 17. Bxe4 {[%clk 0:01:45]}  O-O {[%clk 0:02:23]} 18. bxa5 {[%clk 0:01:43]}  Qc5 {[%clk 0:02:22]} 19. Bb4 {[%clk 0:01:32]}  Qc7 {[%clk 0:02:18]} 20. Qd2 {[%clk 0:01:29]}  Bf5 {[%clk 0:02:12]} 21. g4 {[%clk 0:01:19]}  Bxe4 {[%clk 0:02:11]} 22. fxe4 {[%clk 0:01:20]}  hxg4 {[%clk 0:02:06]} 23. h5 {[%clk 0:01:19]}  Nf4 {[%clk 0:02:06]} 24. h6 {[%clk 0:01:18]}  g5 {[%clk 0:02:03]} 25. Ng3 {[%clk 0:01:10]}  Be3 {[%clk 0:01:53]} 26. Qb2 {[%clk 0:00:57]}  Bf2+ {[%clk 0:01:48]} 27. Kd1 {[%clk 0:00:53]}  Bd4 {[%clk 0:01:46]} 28. Qb3 {[%clk 0:00:48]}  Rac8 {[%clk 0:01:45]} 29. h7+ {[%clk 0:00:43]}  Kh8 {[%clk 0:01:44]} 30. Bd2 {[%clk 0:00:37]}  Neg6 {[%clk 0:01:35]} 31. Nf5 {[%clk 0:00:28]}  g3 {[%clk 0:01:16]} 32. Rc1 {[%clk 0:00:27]}  Qg7 {[%clk 0:01:11]} 33. Nxg7 {[%clk 0:00:24]}  Kxg7 {[%clk 0:01:10]} 34. Qxb7+ {[%clk 0:00:19]}  Kh8 {[%clk 0:01:06]} 35. Rxc8 {[%clk 0:00:18]}  g2 {[%clk 0:01:04]} 36. Re1 {[%clk 0:00:16]}  g1=Q {[%clk 0:00:57]} 0-1


[Site "https://www.chess.com"]